bitfinex/quotes_ETHUSD_20260213
["timestamp","ask_amount","ask_price","bid_price","bid_amount"]
[1770988965218,0.24973335,1966.8,1966.4,0.49357711]
[1770988965407,1.52083835,1966.8,1966.4,0.49357711]
[1770988965911,0.24973335,1966.8,1966.4,0.49357711]
[1770988966929,0.24973335,1966.8,1966.4,1.76493187]
[1770988967623,1.52083501,1966.8,1966.4,0.49357711]
[1770988968306,0.24973335,1966.8,1966.4,0.49357711]
[1770988968605,1.52085245,1966.8,1966.4,0.49357711]
[1770988971029,0.24973335,1966.8,1966.5,0.49357711]
[1770988971729,0.00153886,1967.0,1966.5,0.49357711]
[1770988972130,0.11166279,1967.8,1966.6,0.49357711]
[1770988972333,1.27051887,1967.7,1966.8,0.49357711]
[1770988972820,5.19369697,1967.8,1967.0,0.49357711]
[1770988973133,0.11166279,1967.7,1967.0,0.49357711]
[1770988973337,5.08203418,1967.8,1967.0,0.49357711]
[1770988973507,1.27045431,1967.8,1967.0,0.49357711]
[1770988974917,1.27186406,1968.0,1967.0,0.49357711]
[1770988975129,1.27186406,1968.0,1967.2,0.49357711]
[1770988975719,1.27186406,1968.0,1967.3,0.49357711]
[1770988975924,1.38352685,1968.0,1967.3,0.49357711]
[1770988976241,1.27186406,1968.0,1967.3,0.49357711]
[1770988976414,0.00153886,1968.0,1967.3,0.49357711]
[1770988977036,0.00153886,1968.0,1967.5,0.49357711]
[1770988977336,0.1300098,1968.3,1967.5,0.49357711]
[1770988977536,0.00153886,1969.0,1967.6,0.49357711]
[1770988977537,1.38489008,1969.0,1967.6,0.49357711]
[1770988977836,0.11366279,1968.9,1967.8,0.49357711]
[1770988978004,0.002,1968.0,1967.8,0.49357711]
[1770988978337,1.91889008,1969.0,1967.9,0.49357711]
[1770988978508,0.002,1968.8,1967.9,0.49357711]
[1770988979532,0.11566279,1968.8,1968.0,0.49357711]
[1770988980427,0.11566279,1968.8,1967.6,2.177]
[1770988981014,0.11566279,1968.8,1967.6,2.64512585]
[1770988981223,0.11366279,1968.6,1967.6,3.91569903]
[1770988981424,0.11366279,1968.6,1967.7,0.46812585]
[1770988981741,1.26987352,1968.7,1967.7,0.46812585]
[1770988982331,0.11366279,1968.6,1967.7,0.46812585]
[1770988982807,1.26987352,1968.7,1967.7,0.46812585]
[1770988983232,1.26987352,1968.7,1967.9,0.46812585]
[1770988984239,1.38353631,1968.7,1967.9,0.46812585]
[1770988984732,0.11366279,1968.6,1967.7,0.46812585]
[1770988985335,1.27000254,1968.5,1967.7,0.46812585]
[1770988987944,1.38366533,1968.5,1967.7,0.46812585]
[1770988988422,1.27000254,1968.5,1967.7,0.46812585]
[1770988988622,0.11366279,1968.4,1967.7,0.46812585]
[1770988989554,1.27000254,1968.5,1967.7,0.46812585]
[1770988989555,1.27000254,1968.5,1967.7,1.27050028]
[1770988989864,1.27000254,1968.5,1967.9,0.46812585]
[1770988990338,0.002,1968.4,1967.9,0.46812585]
[1770988991553,0.002,1968.4,1967.8,0.001]
[1770988991554,0.11566279,1968.4,1967.8,0.001]
[1770988991915,1.27013158,1968.3,1967.8,0.46912585]
[1770988993547,1.27013158,1968.3,1967.8,0.001]
[1770988993974,0.11366279,1968.2,1967.8,0.001]
[1770988994270,0.11366279,1968.2,1967.4,0.46812585]
[1770988995140,0.11366279,1968.2,1967.5,0.46812585]
[1770988995781,1.38379437,1968.3,1967.5,0.46812585]
[1770988995939,1.27013158,1968.3,1967.5,0.46812585]
[1770988996135,0.11366279,1968.2,1967.3,1.73885245]
[1770988996336,0.002,1968.4,1967.5,0.46812585]
[1770988996746,0.002,1968.4,1967.7,0.46812585]
[1770988996950,0.002,1968.4,1967.9,0.46812585]
[1770988997139,1.27206721,1968.4,1967.9,0.46812585]
[1770988997338,0.002,1968.4,1967.9,0.46812585]
[1770988997566,1.27207306,1968.4,1967.9,0.46812585]
[1770988998364,1.27207306,1968.4,1967.8,2.161]
[1770988998365,0.002,1968.4,1967.8,2.161]
[1770988998668,0.11566279,1968.4,1967.2,0.46812585]
[1770989000241,0.11366279,1968.2,1967.2,0.46812585]
[1770989000767,0.11366279,1968.2,1967.1,0.916]
[1770989000972,0.11366279,1968.0,1967.1,0.916]
[1770989001467,0.11366279,1968.0,1967.1,2.65502824]
[1770989001671,0.11366279,1968.0,1967.1,1.38412585]
[1770989001860,0.11366279,1968.0,1967.1,2.65501166]
[1770989002165,0.21606279,1967.9,1967.0,0.00153886]
[1770989002369,1.27045431,1967.8,1967.0,0.00153886]
[1770989003475,1.27045431,1967.8,1967.0,0.46966471]
[1770989004480,5.19548004,1967.9,1967.0,0.46966471]
[1770989004686,5.08181725,1967.9,1967.2,0.46912585]
[1770989005045,5.08155902,1968.2,1967.3,0.46812585]
[1770989005046,1.27019611,1968.2,1967.3,0.46812585]
[1770989005673,0.002,1968.4,1967.5,0.46812585]
[1770989006469,0.00153886,1969.0,1967.9,0.46812585]
[1770989006649,0.00153886,1969.0,1968.1,0.46812585]
[1770989008448,0.00153886,1969.0,1968.3,0.46812585]
[1770989010678,0.00153886,1969.0,1968.5,0.4811784]
[1770989012862,0.00153886,1969.0,1968.5,1.27000027]
[1770989013064,0.00153886,1969.0,1968.6,0.4811784]
[1770989014951,0.00153886,1969.0,1968.3,0.4811784]
[1770989015250,0.00153886,1969.0,1968.4,0.4811784]
[1770989016684,0.00153886,1969.0,1968.2,3.86542501]
[1770989016883,0.00153886,1969.0,1968.2,2.59523463]
[1770989017087,0.00153886,1969.0,1968.3,0.45023463]
[1770989017683,0.002,1968.9,1968.3,0.45023463]
[1770989019180,0.002,1968.9,1968.4,0.45023463]
[1770989021180,0.002,1968.9,1968.5,0.45023463]
[1770989022379,0.002,1968.9,1968.3,0.45023463]
[1770989022761,0.002,1968.9,1968.2,2.59523463]
[1770989022967,0.002,1968.9,1968.2,3.86542634]
[1770989023269,0.002,1968.9,1968.3,0.45023463]
[1770989023665,0.002,1968.9,1968.4,0.45023463]
[1770989024594,0.002,1968.9,1968.3,0.45023463]
[1770989025795,0.002,1968.9,1968.4,0.45023463]
[1770989027261,0.002,1968.9,1968.6,0.45023463]
[1770989027694,0.00513403,1970.0,1968.7,0.45023463]
[1770989027894,0.11566279,1969.9,1968.9,0.45023463]
[1770989028070,0.11566279,1969.8,1968.5,1.32080006]
[1770989028393,0.11566279,1969.7,1968.6,0.45023463]
[1770989028897,0.11566279,1969.5,1968.6,0.45023463]
[1770989029070,0.11566279,1969.5,1968.3,1.959]
[1770989029281,0.11566279,1969.5,1968.2,1.2701744]
[1770989029282,0.11566279,1969.3,1968.2,0.45023463]
[1770989029464,0.11566279,1969.2,1968.2,0.45023463]
[1770989029661,0.11566279,1969.1,1968.0,0.45177349]
[1770989029889,0.1024,1969.3,1968.1,0.45023463]
[1770989030094,1.772,1969.2,1968.1,0.45023463]
[1770989030288,0.11566279,1969.1,1968.1,0.45023463]
[1770989031286,1.26968004,1969.0,1968.1,0.45023463]
[1770989033093,1.26968004,1969.0,1968.2,0.45123463]
[1770989033486,0.002,1968.9,1968.2,0.45123463]
[1770989034816,0.002,1968.9,1968.3,0.45023463]
[1770989036104,0.002,1968.9,1968.2,0.001]
[1770989038282,0.002,1968.9,1968.2,0.45123463]
[1770989040539,0.002,1968.9,1968.3,0.45023463]
[1770989041006,1.26961085,1969.2,1968.3,0.47223104]
[1770989041823,5.07812045,1969.3,1968.4,0.47223104]
[1770989043718,5.07819727,1969.5,1968.4,0.47223104]
[1770989044019,0.11566279,1969.4,1968.4,0.47223104]
[1770989044220,0.11566279,1969.2,1968.2,0.47323104]
[1770989044635,0.11566279,1969.2,1968.0,0.00253886]
[1770989044636,0.11566279,1968.9,1968.0,0.00253886]
[1770989044794,0.1024,1968.8,1968.0,0.00253886]
[1770989047006,1.26987352,1968.7,1968.2,0.001]
[1770989047229,1.26987352,1968.7,1968.0,0.00253886]
[1770989048304,1.38553631,1968.7,1968.0,0.00253886]
[1770989048629,1.26987352,1968.7,1968.0,0.00253886]
[1770989054432,1.26987352,1968.7,1968.0,0.4747699]
[1770989055443,6.84649408,1968.9,1968.0,0.4747699]
[1770989055444,0.002,1969.2,1968.2,0.47223104]
[1770989055643,0.002,1969.2,1968.1,3.95116]
[1770989055644,0.002,1969.2,1968.4,0.47223104]
[1770989056210,0.002,1969.2,1968.6,0.47223104]
[1770989056513,0.24275753,1971.7,1969.7,0.47223104]
[1770989056808,0.24275753,1971.7,1971.3,1.605902]
[1770989056809,0.0019836,1971.6,1971.3,1.605902]
[1770989057033,1.51269757,1971.7,1971.0,0.47223104]
[1770989057034,1.26795644,1971.7,1971.0,0.47223104]
[1770989057343,1.778,1971.9,1970.7,0.47223104]
[1770989057588,0.1024,1971.9,1970.7,0.47223104]
[1770989057716,8.71824653,1971.7,1970.7,0.47223104]
[1770989058246,1.26928733,1972.0,1970.7,0.47223104]
[1770989058247,1.779,1971.8,1970.7,0.47223104]
[1770989059013,0.1024,1971.9,1970.7,0.47223104]
[1770989059243,0.1024,1971.9,1970.8,0.47223104]
[1770989059244,1.26787706,1971.8,1970.8,0.47223104]
[1770989059648,1.26786026,1971.9,1970.8,0.47223104]
[1770989061561,0.002,1971.8,1970.8,0.47223104]
[1770989061750,0.59572389,1971.8,1970.5,0.47223104]
[1770989062154,0.1044,1971.8,1970.5,0.47223104]
[1770989063569,1.75926526,1971.7,1970.5,0.47223104]
[1770989063941,1.75926526,1971.7,1970.5,1.74094222]
[1770989064141,1.26794137,1971.7,1970.5,1.74093843]
[1770989064343,1.26794137,1971.7,1970.6,0.47223104]
[1770989065741,1.75926526,1971.7,1970.6,0.47223104]
[1770989066064,1.75926526,1971.7,1970.4,2.18374552]
[1770989066247,1.75926526,1971.7,1970.4,2.65597656]
[1770989066457,0.1024,1971.6,1970.4,1.38723104]
[1770989066632,0.59372389,1971.6,1970.4,1.38723104]
[1770989066961,0.59372389,1971.6,1970.4,0.47223104]
[1770989067473,1.26806999,1971.5,1970.4,0.47223104]
[1770989069452,1.26819865,1971.3,1970.1,3.20423104]
[1770989069656,1.75952254,1971.3,1970.1,3.20423104]
[1770989070039,0.49132389,1971.2,1970.1,3.20423104]
[1770989070665,0.45010709,1971.1,1970.1,0.915]
[1770989072254,1.26839167,1971.0,1970.1,0.915]
[1770989072657,1.26839167,1971.0,1970.0,0.00153886]
[1770989072658,1.8864,1970.9,1970.0,0.00153886]
[1770989072862,8.71824653,1970.8,1970.0,0.00153886]
[1770989073065,0.45010709,1970.8,1970.0,0.00153886]
[1770989073646,0.45010709,1970.7,1970.0,0.00153886]
[1770989074257,1.8864,1970.9,1969.1,0.48377444]
[1770989074258,1.2689067,1970.2,1969.1,0.48377444]
[1770989074463,3.50301379,1970.2,1969.1,0.48377444]
[1770989074641,3.50301379,1970.2,1969.1,1.75338672]
[1770989074846,3.50301379,1970.2,1969.1,0.48377444]
[1770989075049,3.50301379,1970.2,1970.0,0.001]
[1770989075279,3.50301379,1970.2,1969.1,0.48377444]
[1770989075974,3.50301379,1970.2,1969.1,1.7533845]
[1770989076972,1.2689067,1970.2,1969.2,0.48586914]
[1770989077375,3.05585348,1970.3,1969.2,0.48586914]
[1770989077677,1.26885348,1970.3,1969.2,0.48586914]
[1770989078377,1.72150751,1970.3,1969.2,0.48586914]
[1770989079375,1.787,1970.2,1969.0,0.91653886]
[1770989079574,1.787,1970.2,1969.0,1.402408]
[1770989080147,1.787,1970.2,1969.1,0.48586914]
[1770989080349,2.23965403,1970.2,1969.1,0.48586914]
[1770989080573,1.787,1970.2,1969.1,0.48586914]
[1770989081279,1.26897111,1970.1,1969.2,1.75542022]
[1770989081448,1.26897111,1970.1,1969.3,0.48586914]
[1770989083151,1.26897111,1970.1,1969.0,1.402408]
[1770989083362,1.26897111,1970.1,1969.1,0.48586914]
[1770989083363,9.98721764,1970.1,1969.1,0.48586914]
[1770989083559,1.26897111,1970.1,1969.1,0.48586914]
[1770989085287,1.26894189,1970.2,1969.3,0.48586914]
[1770989086883,1.26887885,1970.3,1969.3,0.48586914]
[1770989087454,1.26871352,1970.5,1969.5,0.48586914]
[1770989088270,0.45265403,1970.4,1969.2,1.75536797]
[1770989088466,0.45265403,1970.4,1969.3,0.48586914]
[1770989089293,0.45465403,1970.4,1969.3,0.48586914]
[1770989089493,1.2688423,1970.3,1969.3,1.75533873]
[1770989089867,1.2688423,1970.3,1969.4,0.48586914]
[1770989091658,1.2688423,1970.3,1969.4,1.75527067]
[1770989092383,1.2688423,1970.3,1969.5,0.48586914]
[1770989092788,1.270791,1970.4,1969.5,0.48586914]
[1770989093087,1.270791,1970.4,1969.6,0.48586914]
[1770989093588,0.002,1970.4,1969.6,0.48586914]
[1770989093770,0.002,1970.4,1969.7,0.48586914]
[1770989094762,0.002,1970.4,1969.4,3.85728795]
[1770989095293,0.002,1970.4,1969.5,0.48586914]
[1770989095596,1.27077791,1970.4,1969.5,0.48586914]
[1770989096981,1.72343194,1970.4,1969.4,0.48586914]
[1770989097157,1.27077791,1970.4,1969.4,0.48586914]
[1770989097991,1.26869561,1970.6,1969.6,0.48586914]
[1770989098296,1.26845603,1970.9,1969.6,0.48586914]
[1770989099400,1.26993318,1971.0,1969.6,0.48586914]
[1770989100195,0.00153886,1971.0,1969.8,0.48586914]
[1770989100375,0.00153886,1971.0,1970.0,0.48586914]
[1770989100579,0.4790876,1971.0,1970.0,0.48586914]
[1770989101492,0.4790876,1971.0,1969.8,3.013]
[1770989101697,0.4790876,1971.0,1969.8,0.49676837]
[1770989102099,0.00153886,1971.0,1969.8,0.49676837]
[1770989102313,1.26993053,1971.0,1970.0,0.49676837]
[1770989102634,0.00153886,1971.0,1970.0,0.49676837]
[1770989102819,1.26809697,1971.5,1970.2,0.49676837]
[1770989103480,1.74564571,1971.5,1970.2,0.49676837]
[1770989103686,0.002,1970.8,1970.2,0.49676837]
[1770989103884,1.26809697,1971.5,1970.1,0.49676837]
[1770989104206,0.002,1970.9,1970.2,1.2689067]
[1770989104380,0.002,1970.9,1970.3,0.49676837]
[1770989104711,0.002,1970.9,1970.2,1.2689067]
[1770989104712,0.002,1970.9,1970.5,0.49676837]
[1770989105416,5.07178335,1971.7,1970.5,0.49676837]
[1770989105711,5.54933209,1971.7,1970.5,0.49676837]
[1770989106406,5.54933209,1971.7,1970.7,0.49676837]
[1770989107113,5.07178335,1971.7,1970.7,0.49676837]
[1770989108415,5.07178335,1971.7,1970.8,1.76528876]
[1770989108825,5.07178335,1971.7,1970.9,0.49676837]
[1770989109013,2.2600876,1972.0,1970.9,0.49676837]
[1770989109326,1.26781276,1971.9,1970.9,0.49676837]
[1770989109546,0.1309359,1972.2,1971.1,0.49676837]
[1770989109547,1.39857045,1972.2,1971.1,0.49676837]
[1770989109814,1.39857231,1972.2,1971.1,0.49676837]
[1770989110216,1.39857231,1972.2,1971.2,3.51376837]
[1770989110421,1.39857231,1972.2,1971.3,0.49676837]
[1770989110808,0.1309359,1972.2,1971.3,0.49676837]
[1770989111200,0.1309359,1972.2,1971.2,4.28519913]
[1770989111201,0.0039936,1973.5,1972.0,0.49676837]
[1770989111389,0.45466878,1974.3,1973.2,0.49676837]
[1770989111590,1.52384435,1974.9,1973.2,0.43676837]
[1770989111591,0.47754874,1974.8,1973.2,0.43676837]
[1770989111825,0.47754874,1974.6,1973.2,0.43676837]
[1770989111994,1.26614332,1974.5,1973.2,0.43676837]
[1770989112187,1.26614332,1974.5,1973.4,0.49676837]
[1770989112512,1.798,1974.9,1973.4,0.49676837]
[1770989112513,1.26524621,1975.9,1974.1,0.49676837]
[1770989112711,8.71824653,1975.8,1974.3,0.49676837]
[1770989112905,0.26462758,1975.1,1974.0,0.00153886]
[1770989113225,0.47754874,1975.7,1974.0,0.91553886]
[1770989113226,6.980298,1975.6,1974.0,0.91553886]
[1770989113392,9.73835387,1975.9,1974.2,0.49676837]
[1770989113745,8.47310766,1975.8,1974.2,0.49676837]
[1770989114321,1.26537429,1975.7,1974.4,0.49676837]
[1770989114549,1.74292303,1975.7,1974.4,0.49676837]
[1770989114744,1.74292303,1975.7,1974.0,0.00153886]
[1770989114745,7.99555892,1975.4,1974.0,0.49830723]
[1770989115036,2.28254874,1975.3,1974.0,0.00153886]
[1770989115222,7.99555892,1975.0,1974.0,0.00153886]
[1770989115409,0.47754874,1975.0,1974.0,0.00153886]
[1770989115615,0.1024,1975.2,1974.0,1.26798514]
[1770989116036,0.1024,1975.2,1974.0,0.00153886]
[1770989116238,5.06149719,1975.8,1974.2,0.49676837]
[1770989116239,7.34404593,1975.8,1974.2,0.49676837]
[1770989116439,5.06149719,1975.8,1974.4,0.49676837]
[1770989116642,5.53904593,1975.8,1974.4,0.49676837]
[1770989117212,0.002,1975.7,1974.4,0.49676837]
[1770989117839,0.002,1975.7,1974.3,1.26627158]
[1770989117840,0.002,1975.7,1974.9,3.03040837]
[1770989118052,0.002,1975.7,1974.9,0.49676837]
[1770989118518,0.002,1975.7,1974.8,0.914]
[1770989118720,0.002,1975.7,1974.8,2.1799501]
[1770989118923,0.002,1975.7,1974.8,2.67671847]
[1770989119143,0.002,1975.7,1974.8,2.17994093]
[1770989119358,0.002,1975.7,1974.8,0.914]
[1770989119562,0.002,1975.7,1974.8,2.17994467]
[1770989119710,0.002,1975.7,1974.8,2.17995079]
[1770989119915,0.002,1975.7,1974.8,0.914]
[1770989120133,0.002,1975.7,1974.6,1.26607371]
[1770989120134,0.47754874,1975.5,1974.0,0.00153886]
[1770989120410,1.26569461,1975.2,1974.0,0.00153886]
[1770989120649,1.74324335,1975.2,1974.0,0.00153886]
[1770989121215,0.47754874,1975.1,1974.0,0.00153886]
[1770989121409,1.26569461,1975.2,1974.0,0.00153886]
[1770989121410,2.28754874,1975.0,1974.0,0.00153886]
[1770989121626,1.81,1975.0,1974.0,0.00153886]
[1770989122436,1.74343562,1974.9,1974.0,0.00153886]
[1770989122641,0.47754874,1974.8,1974.0,0.00153886]
[1770989123844,7.99555892,1974.6,1973.6,0.913]
[1770989124046,0.47754874,1974.8,1973.6,2.17971884]
[1770989124345,1.808,1974.5,1973.6,0.913]
[1770989124547,1.26620745,1974.4,1973.6,2.17972026]
[1770989124847,1.26620745,1974.4,1973.6,0.913]
[1770989125041,1.26620745,1974.4,1973.6,0.72736579]
[1770989125818,1.26620745,1974.4,1973.6,1.99407109]
[1770989126013,1.26620745,1974.4,1973.6,0.72736579]
[1770989126217,1.26620745,1974.4,1973.6,1.9940829]
[1770989126447,1.26620745,1974.4,1973.6,0.72736579]
[1770989127654,7.99555892,1974.3,1973.1,1.26704171]
[1770989128018,1.807,1974.3,1973.2,0.49676837]
[1770989128431,1.26620745,1974.4,1973.2,0.49676837]
[1770989128654,5.06508638,1975.0,1973.5,0.49676837]
[1770989128949,1.26736164,1975.0,1973.7,0.49676837]
[1770989130323,0.00153886,1975.0,1973.7,0.49676837]
[1770989130540,0.00153886,1975.0,1973.9,0.49676837]
[1770989130741,0.50107337,1975.0,1973.8,0.001]
[1770989131854,8.49663229,1975.0,1973.8,0.001]
[1770989132555,0.00153886,1975.0,1973.9,0.49659935]
[1770989132759,2.17847869,1975.6,1974.1,0.49659935]
[1770989132925,1.2674262,1975.7,1974.5,0.49659935]
[1770989133127,1.2674262,1975.7,1974.6,0.49659935]
[1770989134335,0.002,1975.7,1974.6,0.49659935]
[1770989134733,0.002,1975.7,1974.8,0.49659935]
[1770989135850,0.002,1975.7,1974.7,1.72667929]
[1770989136049,0.002,1975.7,1974.8,0.4606642]
[1770989136558,0.002,1975.7,1974.7,1.26601509]
[1770989136756,0.002,1975.7,1974.6,5.06406036]
[1770989137355,0.002,1975.7,1974.6,5.52472456]
[1770989137564,0.002,1975.7,1974.7,0.4606642]
[1770989137963,0.002,1975.7,1974.6,5.06406036]
[1770989138131,0.002,1975.7,1974.7,0.4606642]
[1770989138531,0.002,1975.7,1974.6,5.06406036]
[1770989139544,0.002,1975.7,1974.6,5.52472456]
[1770989139737,0.002,1975.7,1974.6,1.2660792]
[1770989140365,0.002,1975.7,1974.7,0.4606642]
[1770989140665,0.002,1975.7,1974.7,0.92599478]
[1770989140860,0.002,1975.7,1974.7,0.4606642]
[1770989141039,0.002,1975.7,1974.8,1.26595098]
[1770989141642,0.002,1975.7,1974.9,0.92663029]
[1770989141964,0.002,1975.7,1974.9,0.4606642]
[1770989143159,0.002,1975.7,1975.0,1.26582278]
[1770989143471,0.002,1975.7,1974.8,5.52433189]
[1770989145478,0.002,1975.7,1974.8,5.06366769]
[1770989145641,0.002,1975.7,1974.7,1.26696387]
[1770989145839,0.002,1975.7,1974.7,1.72762807]
[1770989146041,0.002,1975.7,1974.7,1.26696387]
[1770989146241,0.002,1975.7,1974.7,1.2670084]
[1770989146485,0.002,1975.7,1974.7,0.001]
[1770989146486,0.49449898,1975.7,1974.7,0.001]
[1770989146686,3.19749898,1975.7,1974.7,0.001]
[1770989147058,1.26543834,1975.6,1974.7,0.001]
[1770989147978,0.49249898,1975.5,1974.7,0.001]
[1770989149161,1.75806544,1975.4,1974.5,0.913]
[1770989149501,0.49249898,1975.1,1974.0,0.00153886]
[1770989149677,0.49249898,1974.7,1974.0,0.00153886]
[1770989149983,0.49249898,1974.7,1973.8,0.001]
[1770989150153,7.99555892,1974.4,1973.2,1.463]
[1770989150344,0.49249898,1974.2,1973.0,0.91353886]
[1770989150754,2.702,1974.3,1973.0,0.00153886]
[1770989150755,8.4880579,1974.0,1973.0,0.00153886]
[1770989151177,1.26652819,1973.9,1973.0,0.00153886]
[1770989152203,0.49249898,1973.8,1973.0,0.00153886]
[1770989152402,3.19549898,1973.8,1973.0,0.00153886]
[1770989152727,1.26652819,1973.9,1973.0,0.00153886]
[1770989153100,0.49249898,1973.8,1972.5,2.102]
[1770989153270,1.75915551,1973.7,1972.5,3.36942594]
[1770989153471,1.75915551,1973.7,1972.6,0.02779213]
[1770989153790,1.793,1973.6,1972.5,3.36942418]
[1770989154112,1.792,1973.6,1972.5,3.36942636]
[1770989154316,6.85911442,1973.9,1972.6,0.48845069]
[1770989154670,6.85911442,1973.9,1972.6,0.02778649]
[1770989154981,7.3516134,1973.9,1972.5,3.39721285]
[1770989155301,1.793,1973.8,1972.5,3.39721285]
[1770989156171,0.49249898,1973.7,1972.5,2.102]
[1770989156375,1.793,1973.8,1972.5,2.102]
[1770989156376,8.4880579,1973.6,1972.5,2.102]
[1770989156576,0.49249898,1973.6,1972.4,0.912]
[1770989156813,8.4880579,1973.5,1972.6,0.001]
[1770989157125,0.49249898,1973.5,1972.6,0.001]
[1770989157303,1.75934807,1973.4,1972.6,0.001]
[1770989157907,1.26684909,1973.4,1972.6,0.001]
[1770989158612,1.793,1973.3,1972.6,0.001]
[1770989159002,2.28549898,1973.3,1972.6,0.001]
[1770989159188,5.98039637,1973.5,1972.6,0.001]
[1770989159189,5.06739637,1973.5,1972.6,0.001]
[1770989159818,1.26665653,1973.7,1972.6,0.001]
[1770989160021,1.794,1973.6,1972.6,0.001]
[1770989160233,1.794,1973.7,1972.6,0.001]
[1770989160423,3.06065653,1973.7,1972.6,0.001]
[1770989160990,3.06065653,1973.7,1972.5,0.001]
[1770989160991,0.45743782,1973.4,1972.5,0.001]
[1770989161194,1.26691329,1973.3,1972.5,0.001]
[1770989161395,1.795,1973.2,1972.5,0.001]
[1770989161907,7.99555892,1973.1,1972.0,2.10453886]
[1770989162098,7.99555892,1973.1,1972.0,3.37227449]
[1770989162295,7.99555892,1973.1,1972.0,2.10453886]
[1770989162514,7.99555892,1973.1,1972.0,3.37228706]
[1770989162822,8.45299674,1973.1,1972.0,2.10453886]
[1770989163028,8.45299674,1973.1,1972.0,3.37228338]
[1770989163225,1.26710593,1973.0,1972.0,3.37228338]
[1770989163427,1.26710593,1973.0,1972.0,3.8315411]
[1770989163636,1.26710593,1973.0,1972.1,0.45925772]
[1770989165011,1.26710593,1973.0,1972.0,3.37226401]
[1770989165210,1.26697749,1973.2,1972.0,3.83152173]
[1770989165410,1.26697749,1973.2,1972.1,0.45925772]
[1770989166415,3.06497749,1973.2,1972.0,3.42297394]
[1770989166618,3.06497749,1973.2,1972.0,3.37226401]
[1770989166932,3.06497749,1973.2,1972.0,3.83152173]
[1770989167751,3.06497749,1973.2,1972.1,0.45925772]
[1770989168124,3.52241531,1973.2,1972.0,3.37225531]
[1770989168632,3.06497749,1973.2,1972.0,3.83151303]
[1770989168835,3.06497749,1973.2,1972.1,0.45925772]
[1770989169623,3.06497749,1973.2,1972.2,1.26761991]
[1770989170429,3.06497749,1973.2,1972.2,1.72687763]
[1770989170733,3.07297749,1973.2,1972.2,1.72687763]
[1770989171311,0.002,1973.1,1972.3,0.45925772]
[1770989171711,0.002,1973.1,1972.4,1.26749138]
[1770989172526,0.002,1973.1,1972.4,1.7267491]
[1770989172739,0.002,1973.1,1972.5,0.45925772]
[1770989173617,0.002,1973.1,1972.6,1.72662059]
[1770989174818,0.002,1973.1,1972.6,0.45925772]
[1770989175020,0.002,1973.1,1972.3,5.07009705]
[1770989175225,0.002,1973.1,1972.3,5.52935477]
[1770989176140,0.002,1973.1,1972.4,0.45925772]
[1770989177718,0.002,1973.1,1972.7,1.26729862]
[1770989178444,0.002,1973.1,1972.7,1.72655634]
[1770989179218,0.002,1973.1,1972.6,1.26735586]
[1770989179550,0.002,1973.1,1972.5,3.3763797]
[1770989180918,0.002,1973.1,1972.5,2.109]
[1770989181119,0.002,1973.1,1972.5,3.37641718]
[1770989181417,0.002,1973.1,1972.6,0.45925772]
[1770989184029,0.002,1973.1,1972.6,1.72657928]
[1770989184956,0.002,1973.1,1972.5,3.37637459]
[1770989186258,0.002,1973.1,1972.5,2.109]
[1770989186754,0.002,1973.1,1972.5,3.3764244]
[1770989188030,1.22091329,1973.3,1972.5,3.3764244]
[1770989188252,5.06765316,1973.4,1972.5,3.3764244]
[1770989188453,1.0313249,1973.3,1972.5,3.3764244]
[1770989188655,5.06765316,1973.4,1972.5,3.3764244]
[1770989189458,1.48873484,1973.3,1972.5,2.109]
[1770989189659,1.03129702,1973.2,1972.5,2.109]
[1770989190061,1.03129702,1973.2,1972.5,3.37642328]
[1770989190278,2.2983179,1973.2,1972.5,3.835681]
[1770989190473,1.26702088,1973.2,1972.5,3.835681]
[1770989190841,1.26702088,1973.2,1972.5,2.109]
[1770989191843,1.26702088,1973.2,1972.2,1.76735927]
[1770989192040,1.52612467,1973.1,1972.1,1.2686572]
[1770989192245,1.26717015,1972.9,1972.1,0.001]
[1770989192546,1.58016669,1972.8,1972.1,0.001]
[1770989192757,1.08696465,1972.7,1972.1,0.001]
[1770989193588,1.58016669,1972.7,1972.1,0.001]
[1770989193881,1.58694352,1972.6,1972.1,0.001]
[1770989194087,0.49320204,1972.6,1972.1,0.001]
[1770989194240,1.26742712,1972.5,1972.1,0.001]
[1770989194441,1.76062916,1972.5,1971.5,1.26806999]
[1770989195395,1.09327987,1972.4,1971.5,1.26806999]
[1770989195570,1.09327987,1972.3,1971.5,1.26806999]
[1770989195742,1.58661215,1972.2,1971.4,3.37612099]
[1770989195945,1.26742712,1972.5,1971.4,3.84064611]
[1770989195946,1.73784186,1972.5,1971.4,3.84064611]
[1770989196144,1.09335225,1972.4,1971.4,3.84064611]
[1770989196377,2.36092942,1972.3,1971.6,1.26800568]
[1770989196550,1.26757717,1972.3,1971.5,1.73256132]
[1770989196752,1.09265332,1972.2,1971.5,1.73258716]
[1770989196986,1.26757717,1972.3,1971.5,1.26806204]
[1770989197561,1.26757717,1972.3,1972.2,0.001]
[1770989197885,1.09193439,1972.3,1971.6,0.46452512]
[1770989198056,1.26753897,1972.4,1972.0,0.001]
[1770989198376,5.53961747,1972.7,1972.0,0.001]
[1770989198681,1.09137348,1972.6,1972.0,0.001]
[1770989198847,1.09137348,1972.5,1972.0,0.001]
[1770989199049,1.09137348,1972.4,1972.0,0.001]
[1770989199250,0.47041474,1972.6,1972.0,0.001]
[1770989199550,1.09100551,1972.5,1971.6,1.73252538]
[1770989199759,0.47041474,1972.6,1971.6,1.73252538]
[1770989199760,1.09100551,1972.4,1971.6,1.26800026]
[1770989199958,1.09100551,1972.3,1971.3,1.73367109]
[1770989200163,0.47041474,1972.5,1971.4,0.46452512]
[1770989200360,1.26755564,1972.3,1971.5,1.26806999]
[1770989200564,1.26755564,1972.3,1971.4,1.73262676]
[1770989200948,1.26755564,1972.3,1971.4,0.46452512]
[1770989201144,0.47041474,1972.2,1971.3,0.001]
[1770989201383,1.26755564,1972.3,1971.4,0.46452512]
[1770989201590,1.26753516,1972.4,1971.4,0.46452512]
[1770989202190,0.47041474,1972.3,1971.3,1.26918309]
[1770989202494,1.26761991,1972.2,1971.3,1.73370821]
[1770989203212,1.83349295,1972.6,1971.4,0.46452512]
[1770989203478,0.47041474,1972.4,1971.4,0.46452512]
[1770989203660,1.55962527,1972.3,1971.3,1.26918309]
[1770989203861,1.55962527,1972.3,1971.3,0.001]
[1770989203862,0.47041474,1972.3,1971.3,0.001]
[1770989204095,0.47041474,1972.1,1971.3,0.001]
[1770989204458,1.26755564,1972.3,1971.3,0.46552512]